bitfinex/quotes_SOLUSD_20250721
["timestamp","ask_amount","ask_price","bid_price","bid_amount"]
[1753056697638,0.06,180.68,180.67,28.3178]
[1753056697812,0.06,180.72,180.71,26.0]
[1753056698231,0.06,180.72,180.71,26.72]
[1753056698515,0.06,180.72,180.71,0.72]
[1753056698827,0.06,180.72,180.71,26.72]
[1753056699235,0.06,180.72,180.71,33.6793728]
[1753056699837,0.06,180.72,180.71,39.21310087]
[1753056700835,0.06,180.72,180.71,33.126]
[1753056701335,0.06,180.72,180.71,32.406]
[1753056702426,0.06,180.72,180.71,33.126]
[1753056703348,0.06,180.74,180.71,126.71310087]
[1753056703546,0.06,180.77,180.75,26.0]
[1753056703842,0.06,180.77,180.76,0.55321973]
[1753056704140,0.06,180.77,180.76,6.80541711]
[1753056705444,0.06,180.77,180.76,94.30541711]
[1753056705744,0.2,180.81,180.8,26.0]
[1753056705945,0.06,180.84,180.8,153.67309734]
[1753056706136,0.06,180.84,180.81,6.25066755]
[1753056706313,0.06,180.84,180.82,0.55303616]
[1753056706520,0.06,180.84,180.83,32.2188]
[1753056706720,0.06,180.84,180.83,32.9388]
[1753056707121,0.2,180.88,180.84,26.78468397]
[1753056707345,0.2,180.88,180.85,40.17294442]
[1753056707562,0.2,180.88,180.85,137.67294442]
[1753056707729,0.2,180.88,180.86,0.72]
[1753056707934,0.2,180.88,180.86,10.72]
[1753056708130,0.2,180.88,180.86,33.03382253]
[1753056708445,0.06,180.9,180.89,26.0]
[1753056708658,0.06,180.9,180.89,177.01250612]
[1753056708961,0.2,180.91,180.9,16.78468397]
[1753056709120,0.2,180.91,180.9,27.50468397]
[1753056709318,0.2,180.91,180.9,0.72]
[1753056709841,0.2,180.91,180.89,46.175]
[1753056710054,0.2,180.91,180.89,6.555]
[1753056710744,0.2,180.91,180.87,41.1573]
[1753056711248,0.2,180.91,180.87,67.8773]
[1753056711758,0.88,180.91,180.87,67.1573]
[1753056711925,0.2,180.91,180.87,67.1573]
[1753056712758,0.2,180.91,180.87,65.62]
[1753056712954,0.68,180.9,180.85,6.555]
[1753056713155,0.68,180.89,180.84,39.6]
[1753056713351,1.23279159,180.88,180.81,39.6]
[1753056713558,1.23279159,180.88,180.81,65.6]
[1753056713851,1.23279159,180.88,180.81,39.6]
[1753056714155,0.68,180.88,180.81,66.32]
[1753056714362,5.52883286,180.87,180.81,66.32]
[1753056714522,5.52883286,180.87,180.81,40.32]
[1753056714722,0.68,180.88,180.81,40.32]
[1753056714928,1.23279159,180.9,180.82,0.72]
[1753056715749,0.2,180.91,180.84,26.0]
[1753056716052,0.2,180.91,180.88,26.0]
[1753056716828,0.2,180.91,180.88,26.72]
[1753056717359,0.2,180.91,180.88,26.0]
[1753056718234,0.2,180.91,180.89,0.72]
[1753056718428,0.2,180.91,180.88,26.0]
[1753056720152,0.2,180.91,180.88,26.72]
[1753056720459,5.52822157,180.89,180.79,6.9806]
[1753056720645,5.52822157,180.89,180.76,87.5]
[1753056720646,18.01747556,180.88,180.76,6.25192849]
[1753056720839,0.66,180.87,180.76,6.25192849]
[1753056721157,1.21279159,180.87,180.79,26.0]
[1753056721343,1.21279159,180.87,180.79,26.66]
[1753056721544,1.21279159,180.89,180.8,0.66]
[1753056721750,0.2,180.91,180.81,0.55306675]
[1753056721751,0.86,180.91,180.81,0.55306675]
[1753056721939,0.66,180.88,180.8,0.66]
[1753056722139,0.55279159,180.87,180.8,0.66]
[1753056722353,0.66,180.86,180.79,39.58]
[1753056722538,0.66,180.86,180.79,45.1111641]
[1753056722730,0.66,180.86,180.79,71.1111641]
[1753056723149,0.66,180.86,180.75,36.7892831]
[1753056723150,0.55279159,180.85,180.75,6.1738]
[1753056723347,0.66,180.84,180.75,6.1738]
[1753056723545,0.55279159,180.83,180.75,6.1738]
[1753056723746,0.66,180.82,180.73,39.58]
[1753056723957,0.55279159,180.81,180.73,39.58]
[1753056724159,0.66,180.8,180.73,39.58]
[1753056724459,0.66,180.8,180.72,6.19328235]
[1753056724844,0.55279159,180.81,180.72,6.19328235]
[1753056725161,0.55279159,180.81,180.75,26.0]
[1753056725343,1.21279159,180.85,180.76,17.44468397]
[1753056725544,1.21279159,180.85,180.77,0.66]
[1753056725746,0.66,180.84,180.77,0.66]
[1753056725942,1.21279159,180.84,180.76,104.28468397]
[1753056726352,0.66,180.84,180.76,104.28468397]
[1753056726548,0.66,180.84,180.77,0.66]
[1753056726754,0.66,180.84,180.77,6.19187652]
[1753056727269,0.55279159,180.85,180.77,6.19187652]
[1753056727561,0.66,180.84,180.77,0.66]
[1753056728151,1.21279159,180.84,180.76,87.5]
[1753056728463,5.53005585,180.83,180.75,0.03]
[1753056728766,2.10339159,180.82,180.75,0.03]
[1753056728947,2.76339159,180.82,180.75,0.03]
[1753056729146,0.66,180.81,180.75,0.03]
[1753056729344,0.55279159,180.8,180.75,0.03]
[1753056729869,0.66,180.79,180.75,0.03]
[1753056730065,0.55279159,180.78,180.75,0.03]
[1753056730452,0.66,180.77,180.75,0.03]
[1753056730771,1.21279159,180.77,180.75,0.03]
[1753056730965,0.66,180.78,180.75,0.03]
[1753056731471,1.21279159,180.78,180.75,0.03]
[1753056731650,0.55279159,180.79,180.75,0.03]
[1753056731851,6.08420401,180.79,180.75,0.03]
[1753056732059,0.66,180.77,180.75,0.03]
[1753056732244,0.55279159,180.76,180.75,0.03]
[1753056732448,6.74498897,180.76,180.75,0.03]
[1753056733771,1.21279159,180.76,180.75,0.03]
[1753056734569,0.66,180.79,180.75,0.03]
[1753056735260,32.08379789,180.8,180.75,0.03]
[1753056735261,1.21279159,180.78,180.75,0.03]
[1753056735461,0.55279159,180.77,180.75,0.03]
[1753056735657,1.21279159,180.77,180.75,0.03]
[1753056735853,0.55279159,180.77,180.75,0.03]
[1753056736075,0.66,180.76,180.75,0.03]
[1753056736655,6.19219738,180.76,180.75,0.03]
[1753056738146,23.52967294,180.76,180.75,0.03]
[1753056738674,6.74498897,180.76,180.75,0.03]
[1753056739967,23.52967294,180.76,180.75,0.03]
[1753056741158,16.78468397,180.75,180.71,0.03]
[1753056741360,26.0,180.73,180.71,0.03]
[1753056741577,40.15279159,180.72,180.71,0.03]
[1753056741774,40.81279159,180.72,180.71,0.03]
[1753056742758,46.34621345,180.72,180.71,0.03]
[1753056743351,1.21279159,180.72,180.71,0.03]
[1753056743576,0.55279159,180.72,180.71,0.03]
[1753056743777,0.55279159,180.74,180.71,0.03]
[1753056743966,1.649,180.82,180.71,0.69]
[1753056743967,6.08443329,180.78,180.71,0.69]
[1753056744274,40.17279159,180.78,180.71,6.7951]
[1753056744784,0.66,180.77,180.71,6.1351]
[1753056744960,0.55279159,180.76,180.71,6.1351]
[1753056745155,0.66,180.75,180.71,6.1351]
[1753056745466,1.21279159,180.75,180.71,6.1351]
[1753056745777,0.55279159,180.77,180.72,0.66]
[1753056746077,0.66,180.76,180.71,6.1351]
[1753056746386,1.21279159,180.75,180.71,6.1351]
[1753056747060,0.66,180.74,180.71,0.03]
[1753056747258,0.55279159,180.73,180.71,0.03]
[1753056747863,5.53228288,180.76,180.71,0.03]
[1753056748068,0.55279159,180.75,180.71,0.03]
[1753056748274,1.21279159,180.75,180.71,0.03]
[1753056748455,0.55279159,180.75,180.71,0.03]
[1753056748663,0.66,180.74,180.71,0.03]
[1753056749070,6.19281647,180.74,180.71,0.03]
[1753056749296,1.21279159,180.73,180.71,0.03]
[1753056749788,0.55279159,180.73,180.71,0.03]
[1753056749965,0.66,180.72,180.71,0.03]
[1753056750585,26.66,180.72,180.71,0.03]
[1753056750961,45.81342186,180.72,180.71,0.03]
[1753056751374,40.28,180.72,180.71,0.03]
[1753056751775,0.55279159,180.75,180.71,0.03]
[1753056751974,40.17279159,180.75,180.71,0.73]
[1753056752503,0.71,180.74,180.71,0.03]
[1753056752670,0.55279159,180.73,180.71,0.03]
[1753056752981,5.53342186,180.72,180.71,0.03]
[1753056753356,6.24342186,180.72,180.71,0.03]
[1753056753767,0.71,180.72,180.71,0.03]
[1753056753979,0.55279159,180.72,180.71,0.03]
[1753056754182,0.55279159,180.74,180.71,0.03]
[1753056754886,40.17279159,180.75,180.71,0.03]
[1753056755382,0.55279159,180.77,180.72,0.7]
[1753056755891,39.62,180.78,180.73,0.7]
[1753056756189,1.26279159,180.81,180.74,0.7]
[1753056756484,40.88279159,180.81,180.74,2.2327]
[1753056756688,40.17279159,180.81,180.74,2.2327]
[1753056756865,39.62,180.81,180.74,2.2327]
[1753056757067,39.62,180.81,180.75,6.23250345]
[1753056757470,1.26279159,180.84,180.76,0.7]
[1753056757669,0.55279159,180.83,180.76,0.7]
[1753056757873,0.55279159,180.84,180.76,0.7]
[1753056758187,40.17279159,180.85,180.76,0.7]
[1753056758483,39.62,180.85,180.77,16.78468397]
[1753056758671,39.62,180.85,180.78,0.7]
[1753056759072,40.17279159,180.85,180.78,0.7]
[1753056759787,45.70229047,180.85,180.78,0.7]
[1753056759974,0.71,180.84,180.75,26.7]
[1753056760168,0.55279159,180.83,180.75,26.7]
[1753056760978,5.52949888,180.85,180.76,17.48468397]
[1753056761284,0.55279159,180.84,180.77,0.7]
[1753056761485,39.6,180.86,180.79,22.88788397]
[1753056761701,0.06,180.9,180.81,16.78468397]
[1753056761875,0.61279159,180.9,180.81,16.78468397]
[1753056762205,0.61279159,180.9,180.82,2.2093]
[1753056762478,0.61279159,180.9,180.83,0.7]
[1753056762685,0.06,180.9,180.83,0.7]
[1753056763696,5.58802888,180.9,180.83,0.7]
[1753056764068,0.55279159,180.89,180.82,1.5093]
[1753056764284,27.26279159,180.89,180.79,6.1032]
[1753056764602,0.71,180.88,180.79,6.1032]
[1753056764807,0.55279159,180.88,180.8,17.48468397]
[1753056765097,1.26279159,180.88,180.79,6.1032]
[1753056765275,0.71,180.87,180.79,6.1032]
[1753056765473,0.55279159,180.86,180.79,6.1032]
[1753056765660,6.23944429,180.85,180.79,6.1032]
[1753056765859,0.55279159,180.84,180.79,6.1032]
[1753056766582,0.71,180.83,180.79,6.1032]
[1753056766780,1.26279159,180.82,180.77,1.5336]
[1753056766981,0.55279159,180.82,180.77,1.5336]
[1753056767295,1.26279159,180.82,180.77,1.5336]
[1753056767675,5.53066755,180.81,180.77,1.5336]
[1753056767879,5.53066755,180.81,180.75,45.7351]
[1753056768081,0.55279159,180.8,180.75,45.7351]
[1753056768278,0.71,180.79,180.72,2.2053]
[1753056768594,0.55279159,180.78,180.72,2.2053]
[1753056768764,0.55279159,180.78,180.72,1.5053]
[1753056768961,0.71,180.77,180.71,6.6935]
[1753056769166,0.55279159,180.76,180.71,6.6935]
[1753056769596,0.71,180.78,180.72,0.7]
[1753056769597,0.55279159,180.77,180.72,0.7]
[1753056769783,0.55279159,180.8,180.73,0.7]
[1753056769967,0.55279159,180.81,180.73,0.7]
[1753056770368,0.55279159,180.83,180.75,0.03]
[1753056770580,0.06,180.8,180.76,0.7]
[1753056770895,0.06,180.8,180.75,26.03]
[1753056771102,0.06,180.8,180.75,26.73]
[1753056771396,0.06,180.8,180.76,0.7]
[1753056772083,0.06,180.8,180.75,0.03]
[1753056772084,0.77,180.8,180.75,0.03]
[1753056773987,5.65156928,180.77,180.75,0.03]
[1753056774600,5.65156928,180.79,180.76,0.7]
[1753056775099,5.65156928,180.78,180.76,0.7]
[1753056775805,5.65156928,180.78,180.75,0.03]
[1753056777993,5.65156928,180.78,180.75,0.73]
[1753056778191,5.65156928,180.77,180.75,0.03]
[1753056778390,5.65156928,180.76,180.75,0.03]
[1753056778783,6.36156928,180.76,180.75,0.03]
[1753056779673,5.65156928,180.76,180.75,0.03]
[1753056780406,5.65156928,180.78,180.75,0.03]
[1753056780624,0.06,180.8,180.75,0.73]
[1753056780920,5.65156928,180.79,180.75,0.7]
[1753056781412,5.65156928,180.76,180.75,0.03]
[1753056781917,5.65156928,180.78,180.75,0.03]
[1753056782097,5.65156928,180.79,180.75,0.7]
[1753056783296,5.71156928,180.8,180.76,0.67]
[1753056784512,5.65156928,180.78,180.75,0.03]
[1753056785010,5.65156928,180.77,180.75,0.03]
[1753056785206,6.14377163,180.8,180.75,0.03]
[1753056785207,0.68,180.78,180.75,0.03]
[1753056785383,5.65156928,180.76,180.75,0.03]
[1753056786015,5.65156928,180.77,180.75,0.03]
[1753056786230,0.68,180.78,180.75,0.03]
[1753056786231,5.65156928,180.76,180.75,0.03]
[1753056786512,6.33156928,180.76,180.75,0.03]
[1753056786681,6.88436087,180.76,180.75,0.03]
[1753056786887,32.88436087,180.76,180.71,0.03]
[1753056787083,5.65156928,180.72,180.71,0.03]
[1753056787307,6.20436087,180.72,180.67,0.03]
[1753056787508,5.65156928,180.68,180.67,0.03]
[1753056788106,6.33156928,180.68,180.67,0.03]
[1753056788501,12.41900775,180.68,180.67,0.03]
[1753056789996,51.99900775,180.68,180.67,0.03]
[1753056791615,52.01900775,180.68,180.67,0.03]
[1753056792214,6.20436087,180.68,180.67,0.03]
[1753056792404,6.88436087,180.68,180.67,0.03]
[1753056793607,12.41900775,180.68,180.67,0.03]
[1753056793810,6.88436087,180.68,180.67,0.03]
[1753056794123,12.41900775,180.68,180.67,0.03]
[1753056794711,6.88436087,180.68,180.67,0.03]
[1753056795909,6.33156928,180.68,180.67,0.03]
[1753056796419,11.86621616,180.68,180.67,0.03]
[1753056796624,6.33156928,180.68,180.67,0.03]
[1753056796808,11.86621616,180.68,180.67,0.03]
[1753056798005,6.33156928,180.68,180.67,0.03]
[1753056798613,11.86621616,180.68,180.67,0.03]
[1753056800120,28.65090013,180.68,180.67,0.03]
[1753056800524,28.65090013,180.68,180.67,1e-08]
[1753056800707,34.30246941,180.68,180.67,1e-08]
[1753056806121,68.25090013,180.68,180.67,1e-08]
[1753056806333,73.90246941,180.68,180.67,1e-08]
[1753056806632,73.90246941,180.68,180.59,0.03]
[1753056806633,42.78468397,180.64,180.59,0.03]
[1753056806811,5.65156928,180.6,180.59,0.03]
[1753056807014,45.27156928,180.6,180.59,0.03]
[1753056807437,45.95156928,180.6,180.59,0.03]
[1753056808218,45.27156928,180.6,180.59,0.03]
[1753056808537,39.62,180.6,180.59,0.03]
[1753056808711,5.65156928,180.6,180.59,0.7]
[1753056808915,45.27156928,180.6,180.59,0.7]
[1753056809134,45.27156928,180.6,180.59,0.03]
[1753056809637,45.27156928,180.6,180.59,0.7]
[1753056810848,45.27156928,180.6,180.59,0.03]
[1753056811530,45.27156928,180.6,180.59,0.74]
[1753056811915,45.27156928,180.6,180.59,0.03]
[1753056812314,46.53436087,180.6,180.59,0.03]
[1753056812520,52.07145943,180.6,180.59,0.03]
[1753056812728,68.8561434,180.6,180.59,0.03]
[1753056812937,26.0,180.57,180.56,1e-08]
[1753056813129,71.82436087,180.57,180.56,1e-08]
[1753056813513,72.53436087,180.57,180.56,1e-08]
[1753056813932,89.31904484,180.57,180.56,1e-08]
[1753056814329,97.77606398,180.57,180.56,1e-08]
[1753056815220,103.31408247,180.57,180.56,1e-08]
[1753056815607,26.0,180.53,180.52,1e-08]
[1753056815812,93.70782253,180.53,180.52,1e-08]
[1753056816033,94.97061412,180.53,180.52,1e-08]
[1753056817242,100.50985967,180.53,180.52,1e-08]
[1753056819925,12.45360642,180.53,180.52,1e-08]
[1753056820145,34.33706808,180.53,180.52,1e-08]
[1753056820331,74.50985967,180.53,180.52,1e-08]
[1753056821528,34.88985967,180.53,180.52,1e-08]
[1753056821744,74.50985967,180.53,180.52,1e-08]
[1753056822352,2.216619,180.69,180.54,6.3653]
[1753056822526,10.31234357,180.79,180.62,16.78468397]
[1753056822729,0.06,180.79,180.66,1.5759]
[1753056822928,5.71156928,180.79,180.67,42.73285675]
[1753056823247,5.71156928,180.79,180.68,1.26346468]
[1753056823248,39.9,180.78,180.68,1.26346468]
[1753056823436,39.9,180.78,180.66,44.36058397]
[1753056823437,40.61,180.78,180.69,0.71]
[1753056823636,5.65156928,180.74,180.69,0.71]
[1753056823850,0.71,180.78,180.67,16.78468397]
[1753056824034,5.65156928,180.75,180.7,0.71]
[1753056824253,5.59128398,180.79,180.67,0.71]
[1753056824428,5.65156928,180.72,180.67,0.71]
[1753056824638,45.55156928,180.71,180.67,0.71]
[1753056825235,5.65156928,180.69,180.67,0.71]
[1753056825460,5.65156928,180.7,180.67,0.71]
[1753056825675,39.9,180.71,180.68,0.71]
[1753056825842,39.9,180.7,180.69,0.71]
[1753056826257,5.65156928,180.74,180.69,0.71]
[1753056826445,5.65156928,180.76,180.69,0.71]
[1753056826635,45.55156928,180.75,180.69,0.71]
[1753056826833,39.9,180.74,180.69,0.71]
[1753056827055,45.55156928,180.74,180.69,0.71]
[1753056827255,39.9,180.73,180.69,0.71]
[1753056827442,39.9,180.73,180.7,5.53403431]
[1753056827649,39.9,180.73,180.71,0.71]
[1753056827840,39.9,180.73,180.72,0.71]
[1753056828853,5.65156928,180.74,180.72,0.71]
[1753056829050,45.51156928,180.73,180.68,0.71]
[1753056829363,39.86,180.72,180.68,6.24444835]
[1753056829660,45.51156928,180.72,180.69,0.71]
[1753056829955,26.71,180.77,180.69,0.71]
[1753056829956,39.86,180.71,180.69,0.71]
[1753056830157,39.86,180.71,180.66,0.71]
[1753056830334,39.86,180.71,180.67,0.84]
[1753056830539,5.65156928,180.68,180.67,0.84]
[1753056830868,48.43625325,180.68,180.67,0.84]
[1753056831038,49.14625325,180.68,180.59,0.71]
[1753056831233,5.65156928,180.6,180.59,0.71]
[1753056831462,45.53156928,180.6,180.59,0.71]
[1753056832161,45.53156928,180.6,180.58,6.0557]
[1753056832365,5.65156928,180.59,180.58,6.0557]
[1753056832568,5.65156928,180.59,180.53,0.71]
[1753056832746,5.65156928,180.56,180.53,0.71]
[1753056832947,39.86,180.55,180.53,0.71]
[1753056833149,39.86,180.55,180.54,0.71]
[1753056833768,39.86,180.55,180.54,6.24893873]
[1753056833969,5.65156928,180.62,180.55,16.78468397]
[1753056834155,39.86,180.61,180.57,16.78468397]
[1753056834344,39.86,180.61,180.58,0.71]
[1753056834688,5.65156928,180.59,180.55,0.71]
[1753056834842,5.65156928,180.56,180.52,6.12800001]
[1753056835042,5.65156928,180.54,180.52,6.12800001]
[1753056835572,5.65156928,180.54,180.52,6.83800001]
[1753056835960,5.65156928,180.53,180.52,1e-08]
[1753056837847,26.71,180.59,180.55,0.03]
[1753056838059,5.65156928,180.56,180.55,0.03]
[1753056838783,45.53156928,180.56,180.55,0.03]
[1753056840453,39.88,180.56,180.55,0.03]
[1753056840781,0.7,180.65,180.55,0.71]
[1753056840951,0.7,180.65,180.56,17.33851649]
[1753056840952,5.65156928,180.63,180.56,17.33851649]
[1753056841149,5.65156928,180.63,180.57,0.68]
[1753056841475,39.88,180.64,180.57,0.68]
[1753056841780,5.65156928,180.61,180.57,0.68]
[1753056841987,39.9,180.6,180.57,0.68]
[1753056842287,5.65156928,180.58,180.55,0.03]
[1753056842581,5.65156928,180.56,180.55,0.03]
[1753056843150,6.35156928,180.56,180.55,0.03]
[1753056843847,11.88989449,180.56,180.55,0.03]
[1753056844649,32.23832521,180.56,180.55,0.03]
[1753056844871,77.78989449,180.56,180.55,0.03]
[1753056845670,37.88989449,180.56,180.55,0.03]
[1753056845883,77.76989449,180.56,180.55,0.03]
[1753056846955,97.26727679,180.56,180.52,1e-08]
[1753056847154,54.08782253,180.53,180.52,1e-08]
[1753056847374,93.98782253,180.53,180.52,1e-08]
[1753056847758,100.22706808,180.53,180.52,1e-08]
[1753056848162,77.79081483,180.53,180.52,1e-08]
[1753056848856,83.44238411,180.53,180.52,1e-08]
[1753056849179,80.69773379,180.53,180.52,1e-08]
[1753056849875,57.58241776,180.53,180.52,1e-08]
[1753056850067,97.46241776,180.53,180.52,1e-08]
[1753056850470,97.54241776,180.53,180.52,1e-08]
[1753056851272,57.58241776,180.53,180.52,1e-08]
[1753056851468,97.54241776,180.53,180.52,1e-08]
[1753056851681,57.58241776,180.53,180.52,1e-08]
[1753056851888,97.54241776,180.53,180.52,1e-08]
[1753056852059,97.44241776,180.53,180.52,1e-08]
[1753056852262,137.40241776,180.53,180.52,1e-08]
[1753056852975,137.38241776,180.53,180.52,1e-08]
[1753056853665,97.44241776,180.53,180.52,1e-08]
[1753056853872,137.38241776,180.53,180.52,1e-08]
[1753056854366,147.38241776,180.53,180.52,1e-08]
[1753056855714,138.82392952,180.53,180.52,1e-08]
[1753056855901,147.38241776,180.53,180.52,1e-08]
[1753056856081,137.38241776,180.53,180.52,1e-08]
[1753056856290,147.38241776,180.53,180.52,1e-08]
[1753056856685,137.38241776,180.53,180.52,1e-08]
[1753056856900,147.38241776,180.53,180.52,1e-08]
[1753056857109,147.38241776,180.53,180.41,7.2221]
[1753056857110,14.9243815,180.49,180.24,10.0]
[1753056857284,17.42737648,180.34,180.13,0.68]
[1753056857487,8.55848824,180.18,180.13,0.68]
[1753056857710,26.0,180.19,180.14,0.68]
[1753056857896,8.55848824,180.15,180.14,2.87681966]
[1753056858093,49.11848824,180.15,180.14,2.87681966]
[1753056858629,49.81848824,180.15,180.14,2.87681966]
[1753056858787,75.13848824,180.15,180.14,2.87681966]
[1753056858988,75.83848824,180.15,180.14,2.87681966]
[1753056859496,91.92317221,180.15,180.14,2.87681966]
[1753056859693,35.25848824,180.15,179.99,0.55558642]
[1753056859909,8.55848824,180.04,180.01,0.68]
[1753056860205,40.56,180.03,180.01,0.68]
[1753056860407,26.0,180.09,180.0,6.3563]
[1753056860408,40.68,180.02,180.0,6.3563]
[1753056860599,40.7,180.01,180.0,6.3563]
[1753056860786,49.25848824,180.01,180.0,6.5363]
[1753056861305,49.25848824,180.01,180.0,5.8563]
[1753056861499,49.27848824,180.01,179.91,2.87744789]
[1753056861816,8.55848824,179.96,179.94,0.68]
[1753056861986,40.82,179.95,179.94,6.23740802]
[1753056862184,8.55848824,180.03,179.95,16.78468397]
[1753056862383,5.55123792,180.14,179.94,6.23740802]
[1753056862384,40.84,180.02,179.97,16.78468397]
[1753056862611,26.0,180.05,179.98,0.68]
[1753056862912,26.0,180.09,179.99,16.78468397]
[1753056863114,0.7,180.15,179.99,16.78468397]
[1753056863115,40.86,180.08,180.01,16.78468397]
[1753056863414,40.86,180.07,180.02,1.23549383]
[1753056863584,41.0,180.06,180.04,16.78468397]
[1753056863790,41.0,180.06,180.05,23.99188397]
[1753056864006,41.0,180.06,180.05,7.2072]
[1753056864505,41.0,180.06,180.05,12.76121277]
[1753056864699,49.55848824,180.06,180.02,5.55493834]
[1753056864903,0.7,180.13,180.02,5.55493834]
[1753056864904,26.0,180.13,180.05,0.68]
[1753056865106,8.55848824,180.08,180.05,0.68]
[1753056865412,8.55848824,180.1,180.05,0.68]
[1753056865589,8.55848824,180.06,180.02,5.55493834]
[1753056865790,8.55848824,180.04,180.02,5.55493834]
[1753056866097,8.55848824,180.04,180.03,6.23462978]
[1753056866810,49.69848824,180.05,180.03,6.23462978]
[1753056867002,49.69848824,180.05,180.03,5.55462978]
[1753056867191,49.69848824,180.05,180.04,0.68]
[1753056867384,8.55848824,180.05,180.04,0.68]
[1753056867589,39.88,180.16,180.05,16.78468397]
[1753056867818,8.55848824,180.1,180.05,16.78468397]
[1753056868023,41.14,180.09,180.07,5.5533959]
[1753056868189,49.69848824,180.09,180.07,5.5533959]
[1753056868389,49.69848824,180.09,180.08,0.68]
[1753056869415,26.0,180.06,180.03,0.68]
[1753056869635,8.55848824,180.04,180.0,6.23555555]
[1753056869799,8.55848824,180.01,179.92,1.6198]
[1753056870123,8.55848824,179.99,179.95,0.68]
[1753056870330,0.7,180.04,179.95,0.68]
[1753056870490,8.55848824,180.0,179.97,6.23646065]
[1753056870695,41.14,179.99,179.98,12.4248729]
[1753056870896,41.12,179.99,179.98,12.4248729]
[1753056871096,41.12,179.99,179.96,6.24670283]
[1753056871317,41.12,179.99,179.97,0.69]
[1753056871504,0.65,180.05,179.98,0.69]
[1753056871702,8.55848824,180.0,179.98,0.69]
[1753056872019,8.55848824,180.0,179.96,5.55670283]
[1753056872199,41.2,179.99,179.96,5.55670283]
[1753056872402,41.2,179.99,179.97,0.69]
[1753056872597,41.2,179.99,179.96,5.55670283]
[1753056872598,8.55848824,180.0,179.98,0.69]
[1753056872815,41.2,179.99,179.98,0.69]
[1753056873014,49.75848824,179.99,179.96,5.55670283]
[1753056873197,49.75848824,179.99,179.93,39.89428401]
[1753056873198,8.55848824,180.0,179.98,6.24593068]
[1753056873400,41.18,179.99,179.98,5.55593068]
[1753056874015,41.18,179.99,179.98,0.69]
[1753056874219,49.73848824,179.99,179.95,0.69]
[1753056874419,8.55848824,179.98,179.95,0.69]
[1753056874913,8.55848824,179.98,179.94,5.55740802]
[1753056875224,41.18,179.99,179.96,5.55679039]
[1753056875400,49.73848824,179.99,179.96,6.24679039]
[1753056876423,49.73848824,179.99,179.96,5.55679039]
[1753056876424,41.18,179.99,179.96,5.55679039]
[1753056876614,8.55848824,179.98,179.96,5.55679039]
[1753056877134,8.55848824,179.98,179.94,5.55740802]
[1753056877430,8.55848824,179.95,179.92,5.55802578]
[1753056877611,41.1,179.94,179.92,5.55802578]
[1753056877803,41.1,179.94,179.92,6.24802578]
[1753056878114,41.1,179.94,179.93,17.47468397]
[1753056878903,8.55848824,180.0,179.93,17.47468397]
[1753056879119,41.12,179.99,179.94,0.69]
[1753056879326,41.12,179.99,179.95,6.24709919]
[1753056879831,8.55848824,179.98,179.95,5.55709919]
[1753056880344,8.55848824,179.96,179.94,0.03]
[1753056880505,49.63848824,179.95,179.94,0.03]
[1753056880706,41.08,179.95,179.94,5.58740802]
[1753056881102,41.08,179.95,179.94,0.03]
[1753056881322,49.63848824,179.95,179.94,0.03]
[1753056882233,55.84558743,179.95,179.94,0.03]
[1753056882525,55.84558743,179.95,179.85,5.56011874]
[1753056882526,14.76558743,179.95,179.85,5.56011874]